bitfinex/quotes_BTCUSD_20230115
["timestamp","ask_amount","ask_price","bid_price","bid_amount"]
[1673772810740,0.616202,20627.0,20625.0,0.02075556]
[1673772810741,0.484799,20628.0,20625.0,0.11677556]
[1673772810990,1.11417265,20629.0,20626.0,0.56460221]
[1673772810991,0.62941765,20629.0,20626.0,0.56460221]
[1673772811246,0.62941765,20629.0,20625.0,0.02075556]
[1673772811495,0.62941765,20629.0,20625.0,0.50885697]
[1673772811758,0.484728,20631.0,20625.0,0.50560256]
[1673772812009,0.56166718,20632.0,20627.0,0.1307]
[1673772812554,0.56166718,20632.0,20627.0,0.615484]
[1673772812775,0.56166718,20632.0,20629.0,0.1316]
[1673772813044,0.56166718,20632.0,20629.0,1.101085]
[1673772813293,0.24691418,20633.0,20629.0,1.101085]
[1673772813548,0.24691418,20633.0,20630.0,0.3]
[1673772813845,0.24691418,20633.0,20632.0,0.1316]
[1673772814352,0.24691418,20633.0,20632.0,0.2316]
[1673772814604,0.24691418,20633.0,20632.0,0.362]
[1673772814888,0.24691418,20633.0,20632.0,1.13920169]
[1673772816418,0.24691418,20633.0,20632.0,0.73920169]
[1673772816660,0.24691418,20633.0,20632.0,1.03920169]
[1673772816915,0.24691418,20633.0,20632.0,0.73920169]
[1673772817158,0.24683987,20633.0,20632.0,1.13920169]
[1673772817426,0.24683987,20633.0,20632.0,0.73920169]
[1673772817725,0.24683987,20633.0,20632.0,1.52388469]
[1673772818425,0.24683987,20633.0,20632.0,1.14894662]
[1673772818679,0.24683987,20633.0,20632.0,0.53386362]
[1673772820256,0.56340719,20634.0,20632.0,0.53386362]
[1673772821020,0.00330311,20637.0,20632.0,0.484677]
[1673772821293,0.00330311,20637.0,20633.0,0.51567287]
[1673772821294,0.57137065,20637.0,20633.0,0.51567287]
[1673772821570,0.63623427,20636.0,20633.0,0.51567287]
[1673772821817,0.63623427,20636.0,20633.0,1.00032787]
[1673772822907,0.55483203,20637.0,20633.0,1.00032787]
[1673772823333,0.00330311,20637.0,20636.0,0.1306]
[1673772823586,0.00330311,20637.0,20636.0,1.09978]
[1673772824626,0.00330311,20637.0,20636.0,1.61728121]
[1673772825390,0.00330311,20637.0,20636.0,1.09978]
[1673772826160,0.00330311,20637.0,20636.0,1.57698169]
[1673772826445,0.00330311,20637.0,20636.0,1.87698169]
[1673772826720,0.00330311,20638.0,20637.0,0.20490839]
[1673772826915,0.00330311,20638.0,20637.0,1.72947608]
[1673772827739,0.00330311,20638.0,20637.0,2.17827608]
[1673772828248,0.00330311,20638.0,20637.0,1.6252326]
[1673772828510,0.00330311,20638.0,20637.0,1.1406666]
[1673772829561,0.00330311,20638.0,20637.0,1.0090666]
[1673772830369,0.00330311,20638.0,20637.0,0.5602666]
[1673772831679,0.00330311,20638.0,20637.0,1.07282608]
[1673772831951,0.00330311,20638.0,20637.0,1.85451947]
[1673772832200,0.00330311,20638.0,20637.0,1.07282608]
[1673772832452,0.00330311,20638.0,20637.0,1.27282608]
[1673772832708,0.00330311,20638.0,20637.0,1.60804384]
[1673772832979,0.00330311,20638.0,20637.0,1.27282608]
[1673772833480,0.00330311,20638.0,20637.0,0.97282608]
[1673772833735,0.00330311,20638.0,20637.0,1.5942213]
[1673772834752,0.00330311,20638.0,20637.0,1.27282608]
[1673772836044,0.00330311,20638.0,20637.0,0.97282608]
[1673772836576,0.00330311,20638.0,20637.0,1.27282608]
[1673772836836,0.00330311,20638.0,20637.0,1.75543358]
[1673772837132,0.00330311,20638.0,20637.0,1.27282608]
[1673772837603,0.00330311,20638.0,20637.0,1.5085769]
[1673772838154,0.00330311,20638.0,20637.0,1.03137521]
[1673772839154,0.00330311,20638.0,20637.0,0.54680921]
[1673772839675,0.00330311,20638.0,20637.0,0.01105839]
[1673772839935,0.61800048,20638.0,20637.0,0.01105839]
[1673772841747,0.00330311,20638.0,20637.0,0.10707839]
[1673772842275,0.00330311,20638.0,20637.0,0.66886961]
[1673772847707,0.00330311,20638.0,20637.0,1.15343561]
[1673772848815,0.00321106,20638.0,20637.0,0.89164439]
[1673772849558,0.00321106,20638.0,20637.0,1.590161]
[1673772849829,0.00321106,20638.0,20637.0,1.490161]
[1673772850141,0.00321106,20638.0,20637.0,0.89164439]
[1673772850336,0.00321106,20638.0,20637.0,1.46519069]
[1673772850599,0.00321106,20638.0,20637.0,1.18406797]
[1673772851362,0.00321106,20638.0,20637.0,0.89164439]
[1673772851612,0.00321106,20638.0,20637.0,1.38600738]
[1673772851864,0.00321106,20638.0,20637.0,1.08600738]
[1673772852635,0.00321106,20638.0,20637.0,1.38600738]
[1673772852890,0.00321106,20638.0,20637.0,0.98998738]
[1673772853154,0.00321106,20638.0,20637.0,0.01105839]
[1673772854177,0.65466329,20638.0,20637.0,0.01105839]
[1673772855210,0.32553701,20638.0,20637.0,0.01105839]
[1673772855462,1.55921013,20638.0,20637.0,0.01105839]
[1673772855985,2.67137305,20638.0,20637.0,0.01105839]
[1673772856244,2.52855577,20638.0,20637.0,0.01105839]
[1673772856535,1.23769913,20638.0,20637.0,0.01105839]
[1673772857839,3.10609913,20638.0,20637.0,0.01105839]
[1673772858608,3.10609913,20638.0,20635.0,2.0]
[1673772858609,0.02010069,20636.0,20635.0,2.0]
[1673772858897,2.5146317,20636.0,20635.0,2.0]
[1673772859181,3.5933017,20636.0,20635.0,2.0]
[1673772859405,3.4497435,20636.0,20635.0,2.0]
[1673772859659,3.31489309,20636.0,20630.0,0.54875792]
[1673772859915,0.131,20633.0,20629.0,0.66166238]
[1673772860168,1.02423582,20632.0,20629.0,0.66166238]
[1673772860437,0.80789082,20632.0,20628.0,0.01977108]
[1673772860693,0.19072595,20631.0,20630.0,2.0]
[1673772860950,0.61716487,20632.0,20630.0,2.0]
[1673772861796,1.10186387,20632.0,20630.0,2.0]
[1673772862797,0.49311087,20631.0,20630.0,2.0]
[1673772863092,0.97781787,20631.0,20630.0,2.0]
[1673772866136,0.49311087,20631.0,20630.0,2.0]
[1673772868702,0.47874937,20631.0,20630.0,2.0]
[1673772870001,2.0,20633.0,20630.0,2.54745899]
[1673772870261,2.0,20633.0,20630.0,3.03218899]
[1673772870531,2.0,20633.0,20631.0,0.62695962]
[1673772870789,2.56613946,20633.0,20630.0,2.0]
[1673772871030,0.65543487,20632.0,20630.0,2.0]
[1673772872332,0.65543487,20632.0,20630.0,2.98207324]
[1673772872599,2.0,20633.0,20630.0,2.98207324]
[1673772872858,2.0,20633.0,20631.0,0.51631855]
[1673772873623,2.0,20633.0,20631.0,1.00102355]
[1673772875212,0.1311,20635.0,20631.0,1.00102355]
[1673772875488,2.52861024,20636.0,20631.0,0.484705]
[1673772875747,2.52861024,20636.0,20632.0,0.1]
[1673772875748,2.02010069,20636.0,20632.0,0.1]
[1673772876037,2.02010069,20636.0,20633.0,1.453965]
[1673772877060,0.02010069,20636.0,20633.0,1.453965]
[1673772877613,0.02010069,20636.0,20635.0,2.0]
[1673772877886,0.02010069,20636.0,20635.0,2.484613]
[1673772878717,0.02010069,20636.0,20635.0,2.915313]
[1673772879233,0.02010069,20636.0,20635.0,3.86271469]
[1673772882180,0.02010069,20636.0,20635.0,3.60011635]
[1673772883003,0.02010069,20636.0,20635.0,2.954813]
[1673772883519,0.02010069,20636.0,20635.0,3.254813]
[1673772884582,0.02010069,20636.0,20635.0,3.81763555]
[1673772885324,0.02010069,20636.0,20635.0,3.254813]
[1673772885325,0.02010069,20636.0,20635.0,3.90326546]
[1673772885573,0.02010069,20636.0,20635.0,3.79644576]
[1673772885860,0.02010069,20636.0,20635.0,3.72454576]
[1673772886111,0.02010069,20636.0,20635.0,3.182913]
[1673772886869,0.01510069,20636.0,20635.0,3.182913]
[1673772888386,0.01510069,20636.0,20635.0,3.76165772]
[1673772888644,0.01510069,20636.0,20635.0,3.73221146]
[1673772888862,0.01510069,20636.0,20635.0,3.81703568]
[1673772889171,0.01510069,20636.0,20635.0,3.76029964]
[1673772890738,0.01510069,20636.0,20635.0,3.66011469]
[1673772890992,0.01510069,20636.0,20635.0,4.31646776]
[1673772891498,0.01510069,20636.0,20635.0,4.75246756]
[1673772891767,0.01010069,20636.0,20635.0,4.46283518]
[1673772892023,0.00321106,20638.0,20636.0,0.1]
[1673772892280,0.00321106,20638.0,20637.0,1.93089969]
[1673772892536,0.00321106,20638.0,20637.0,2.23089969]
[1673772893825,0.00321106,20638.0,20637.0,2.49129969]
[1673772894105,0.00330311,20642.0,20637.0,3.75627817]
[1673772894356,0.00330311,20642.0,20639.0,0.1]
[1673772894621,0.00330311,20642.0,20641.0,0.1315]
[1673772894875,0.00330311,20642.0,20641.0,1.39317369]
[1673772895682,0.00330311,20642.0,20641.0,1.52357369]
[1673772895931,0.00330311,20642.0,20641.0,3.45167369]
[1673772896983,0.00330311,20642.0,20641.0,3.69975782]
[1673772900046,0.00330311,20642.0,20641.0,3.39975782]
[1673772900583,0.00330311,20642.0,20641.0,3.69975782]
[1673772901393,0.00330311,20642.0,20641.0,3.39975782]
[1673772904779,0.00330311,20642.0,20641.0,2.92255613]
[1673772905557,0.00330311,20642.0,20641.0,3.22255613]
[1673772905778,0.00330311,20642.0,20641.0,2.92255613]
[1673772907884,0.00330311,20642.0,20641.0,1.9281]
[1673772908158,0.57372591,20642.0,20641.0,1.9281]
[1673772909701,0.00330311,20642.0,20641.0,1.9281]
[1673772909967,0.94066311,20642.0,20641.0,1.9281]
[1673772910219,0.94066311,20642.0,20638.0,1.9281]
[1673772910484,1.13138906,20642.0,20638.0,1.9281]
[1673772910736,0.80987806,20642.0,20638.0,1.9281]
[1673772911257,1.41972123,20642.0,20638.0,1.9281]
[1673772911801,0.80987806,20642.0,20638.0,1.9281]
[1673772912346,1.10827332,20642.0,20638.0,1.9281]
[1673772912564,0.61915211,20642.0,20638.0,1.9281]
[1673772912820,1.23146664,20642.0,20638.0,1.9281]
[1673772913076,0.56429614,20641.0,20638.0,1.9281]
[1673772913333,0.484479,20641.0,20638.0,1.9281]
[1673772913843,0.97310808,20641.0,20638.0,1.9278321]
[1673772914929,1.14839781,20641.0,20638.0,1.9278321]
[1673772915403,0.1315,20640.0,20638.0,1.9278321]
[1673772915663,1.390549,20639.0,20638.0,1.9278321]
[1673772915914,1.290549,20639.0,20638.0,1.9278321]
[1673772917216,1.290549,20639.0,20634.0,0.61232436]
[1673772917469,0.40707095,20638.0,20634.0,0.61232436]
[1673772917725,0.50914982,20637.0,20634.0,0.61232436]
[1673772918004,0.69987577,20637.0,20634.0,0.61232436]
[1673772918265,0.50914982,20637.0,20634.0,0.61232436]
[1673772918805,0.50914982,20637.0,20635.0,1.9278321]
[1673772920914,0.50914982,20637.0,20635.0,2.47879132]
[1673772923276,2.0,20639.0,20635.0,1.9278321]
[1673772923533,2.0,20639.0,20636.0,0.47691345]
[1673772923794,0.61503229,20640.0,20637.0,0.484566]
[1673772924565,0.4846509,20639.0,20637.0,0.484566]
[1673772924824,0.47359428,20638.0,20637.0,0.484566]
[1673772925367,0.47359428,20638.0,20636.0,0.484571]
[1673772925627,0.47359428,20638.0,20635.0,1.9278321]
[1673772925887,0.66432023,20638.0,20635.0,1.9278321]
[1673772926143,2.66432023,20638.0,20635.0,1.9278321]
[1673772926403,0.1315,20637.0,20635.0,1.9278321]
[1673772927438,0.616081,20637.0,20635.0,1.9278321]
[1673772928442,0.56266499,20636.0,20635.0,1.9278321]
[1673772928698,1.04725499,20636.0,20635.0,1.9278321]
[1673772929499,1.36876599,20636.0,20635.0,1.9278321]
[1673772929754,1.26359999,20636.0,20632.0,0.0194324]
[1673772930009,1.23798094,20636.0,20632.0,0.0194324]
[1673772930534,1.6861797,20636.0,20632.0,0.59390882]
[1673772930784,1.12351471,20636.0,20632.0,0.0194324]
[1673772931042,0.59631024,20635.0,20632.0,0.0194324]
[1673772931337,1.61291095,20634.0,20632.0,0.0194324]
[1673772931590,0.347045,20633.0,20632.0,0.0194324]
[1673772931949,0.831705,20633.0,20632.0,0.0194324]
[1673772932848,0.831705,20633.0,20632.0,0.03582967]
[1673772933667,3.4723474,20633.0,20632.0,0.03582967]
[1673772935205,2.831705,20633.0,20632.0,0.03582967]
[1673772935456,3.4098749,20633.0,20632.0,0.03582967]
[1673772936510,2.831705,20633.0,20632.0,0.03582967]
[1673772937288,3.34784608,20633.0,20632.0,0.03582967]
[1673772937537,3.34784608,20633.0,20632.0,0.03573489]
[1673772940364,2.0,20633.0,20632.0,0.13175489]
[1673772940615,2.0,20633.0,20632.0,0.73038165]
[1673772941930,2.0,20633.0,20632.0,0.63436165]
[1673772942231,2.0,20633.0,20632.0,0.03573489]
[1673772942480,2.47087716,20633.0,20632.0,0.03573489]
[1673772943279,2.79238816,20633.0,20632.0,0.03573489]
[1673772943558,2.47087716,20633.0,20632.0,0.03573489]
[1673772946444,2.0,20633.0,20632.0,0.71993272]
[1673772946946,0.57393634,20634.0,20632.0,0.71993272]
[1673772947995,0.57393634,20634.0,20633.0,1.9278321]
[1673772949040,2.0,20636.0,20633.0,1.9278321]
[1673772949286,0.63040698,20635.0,20633.0,1.9278321]
[1673772954364,0.77375461,20635.0,20633.0,1.9278321]
[1673772955349,0.63040698,20635.0,20633.0,1.9278321]
[1673772956880,0.77375461,20635.0,20633.0,1.9278321]
[1673772957132,0.77375461,20635.0,20632.0,0.03573489]
[1673772957419,0.321511,20634.0,20632.0,0.03573489]
[1673772957673,0.77375461,20635.0,20632.0,0.03573489]
[1673772958485,0.77364875,20635.0,20632.0,0.61230212]
[1673772959529,0.47285479,20634.0,20632.0,0.61230212]
[1673772962100,0.95749379,20634.0,20632.0,0.03573489]
[1673772962346,1.10084142,20634.0,20632.0,0.03573489]
[1673772962596,1.31602287,20634.0,20632.0,0.03573489]
[1673772962862,0.321511,20633.0,20632.0,0.03573489]
[1673772963241,1.31602287,20634.0,20632.0,0.03573489]
[1673772964405,1.79319689,20633.0,20632.0,0.03573489]
[1673772964661,0.14362635,20633.0,20632.0,0.68678855]
[1673772965188,0.61648114,20634.0,20632.0,0.68678855]
[1673772966197,0.83166259,20634.0,20632.0,0.59076855]
[1673772966741,0.3588078,20634.0,20632.0,0.59076855]
[1673772967230,0.3588078,20635.0,20632.0,0.59076855]
[1673772967493,1.01286936,20635.0,20633.0,0.47541474]
[1673772967760,0.79768791,20635.0,20633.0,0.47541474]
[1673772968022,1.01286936,20635.0,20632.0,0.03573489]
[1673772968282,1.01286936,20635.0,20633.0,0.38707412]
[1673772968528,0.14362635,20634.0,20633.0,0.38707412]
[1673772968776,1.01286936,20635.0,20633.0,0.38707412]
[1673772970880,1.01286936,20635.0,20632.0,0.03573489]
[1673772971053,1.01286936,20635.0,20632.0,0.69338701]
[1673772971307,1.20359531,20635.0,20632.0,0.69338701]
[1673772971557,0.62424173,20634.0,20632.0,0.69338701]
[1673772971807,0.76786808,20634.0,20632.0,0.69338701]
[1673772972321,0.98304953,20634.0,20632.0,0.03573489]
[1673772972562,0.76786808,20634.0,20632.0,0.03573489]
[1673772973062,0.98304953,20634.0,20632.0,0.03573489]
[1673772973557,0.63583249,20633.0,20632.0,0.03573489]
[1673772976314,0.85101394,20633.0,20632.0,0.03573489]
[1673772978516,0.63583249,20633.0,20632.0,0.03573489]
[1673772978655,0.63583249,20633.0,20632.0,0.03563863]
[1673772978909,0.85101394,20633.0,20632.0,0.03563863]
[1673772979160,0.63583249,20633.0,20632.0,0.03563863]
[1673772980692,0.74749978,20633.0,20632.0,0.03563863]
[1673772980955,2.75993166,20633.0,20632.0,0.03563863]
[1673772981204,0.03001768,20631.0,20630.0,1.9278321]
[1673772981462,0.94663934,20631.0,20630.0,1.9278321]
[1673772981755,1.23406555,20631.0,20629.0,0.01943272]
[1673772981998,0.46522323,20630.0,20629.0,0.01943272]
[1673772982298,0.62844223,20630.0,20629.0,0.01943272]
[1673772983081,1.14708902,20630.0,20629.0,0.01943272]
[1673772983331,1.00337679,20630.0,20629.0,0.01943272]
[1673772984146,1.14708902,20630.0,20629.0,0.01943272]
[1673772985421,1.00337679,20630.0,20629.0,0.01943272]
[1673772988741,1.32488779,20630.0,20629.0,0.01943272]
[1673772989222,1.00337679,20630.0,20629.0,0.01943272]
[1673772990055,1.78983825,20630.0,20629.0,0.01943272]
[1673772990321,1.32488779,20630.0,20629.0,0.01943272]
[1673772990564,1.21972179,20630.0,20629.0,0.01943272]
[1673772990818,1.00337679,20630.0,20629.0,0.01943272]
[1673772992911,2.03001768,20631.0,20629.0,0.20930272]
[1673772993153,2.03001768,20631.0,20629.0,1.35642728]
[1673772994186,0.51706151,20630.0,20629.0,0.01943272]
[1673772996749,1.00179151,20630.0,20629.0,0.01943272]
[1673772997003,1.32330251,20630.0,20629.0,0.01943272]
[1673772998012,0.51706151,20630.0,20629.0,0.01943272]
[1673772998776,0.83857251,20630.0,20629.0,0.01943272]
[1673773000047,1.32330251,20630.0,20629.0,0.01943272]
[1673773000552,1.46701474,20630.0,20629.0,0.01943272]
[1673773000800,1.32330251,20630.0,20629.0,0.01943272]
[1673773002071,0.51706151,20630.0,20629.0,0.01943272]
[1673773004309,0.51706151,20630.0,20629.0,0.01932073]
[1673773010168,2.03001768,20631.0,20629.0,0.11534073]
[1673773010479,2.03001768,20631.0,20629.0,0.67767532]
[1673773011710,2.67951506,20631.0,20629.0,0.67767532]
[1673773012204,2.67951506,20631.0,20629.0,0.01932073]
[1673773012453,0.64634849,20630.0,20629.0,0.01932073]
[1673773013203,2.03001768,20631.0,20629.0,0.01932073]
[1673773014686,2.23535363,20631.0,20629.0,0.01932073]
[1673773014939,2.23535363,20631.0,20630.0,9.515578]
[1673773015187,2.03001768,20631.0,20630.0,9.515578]
[1673773015685,2.17372991,20631.0,20630.0,9.515578]
[1673773019999,2.03001768,20631.0,20630.0,10.03141819]
[1673773020776,0.03001768,20631.0,20630.0,10.03141819]
[1673773021020,0.03001768,20631.0,20630.0,10.17577123]
[1673773021267,0.03001768,20631.0,20630.0,10.51614819]
[1673773022018,0.03001768,20631.0,20630.0,10.14466104]
[1673773022269,0.03001768,20631.0,20630.0,10.72199453]
[1673773022520,0.03001768,20631.0,20630.0,10.14466104]
[1673773022763,0.03001768,20631.0,20630.0,10.66651249]
[1673773023031,0.03001768,20631.0,20630.0,10.52215945]
[1673773024589,0.03001768,20631.0,20630.0,10.000308]
[1673773024858,0.03001768,20631.0,20630.0,10.14466104]
[1673773025109,0.03001768,20631.0,20630.0,10.52985646]
[1673773025366,0.03001768,20631.0,20630.0,10.36188533]
[1673773025628,0.03001768,20631.0,20630.0,10.97513295]
[1673773025871,0.03001768,20631.0,20630.0,10.38550057]
[1673773026120,0.03001768,20631.0,20630.0,10.36260377]
[1673773026376,0.02992558,20631.0,20630.0,10.14537948]
[1673773026883,0.02992558,20631.0,20630.0,10.000308]
[1673773027402,0.02992558,20631.0,20630.0,10.69105617]
[1673773027678,0.02992558,20631.0,20630.0,10.54598469]
[1673773034108,0.46950713,20633.0,20630.0,10.54598469]
[1673773034351,0.46950713,20633.0,20631.0,0.4691048]
[1673773035383,0.46950713,20633.0,20630.0,9.515578]
[1673773035642,1.01951497,20633.0,20630.0,9.515578]
[1673773035940,1.09788336,20633.0,20630.0,9.515578]
[1673773036649,1.09788336,20633.0,20630.0,10.18121695]
[1673773036892,1.09788336,20633.0,20631.0,0.46901162]
[1673773037638,1.09788336,20633.0,20630.0,9.515578]
[1673773038891,0.95417113,20633.0,20630.0,9.515578]
[1673773039150,1.09788336,20633.0,20630.0,9.515578]
[1673773039401,0.95417113,20633.0,20630.0,9.515578]
[1673773039688,0.61321936,20633.0,20629.0,0.63240195]
[1673773039923,0.80394531,20633.0,20629.0,0.63240195]
[1673773041223,0.61321936,20633.0,20629.0,0.63240195]
[1673773041719,0.82878902,20633.0,20629.0,0.63240195]
[1673773041966,0.56080168,20632.0,20629.0,0.63240195]
[1673773042484,0.321511,20631.0,20629.0,0.63240195]
[1673773042746,0.216345,20630.0,20629.0,0.63240195]
[1673773042999,0.92008357,20632.0,20629.0,0.63240195]
[1673773043277,0.47720169,20629.0,20622.0,0.01855738]
[1673773043739,0.47720169,20624.0,20621.0,0.29036422]
[1673773043745,0.47720169,20624.0,20618.0,0.18552906]
[1673773043746,0.47720169,20624.0,20618.0,0.80257574]
[1673773044006,0.50279163,20619.0,20618.0,0.30257574]
[1673773044277,0.50279163,20619.0,20618.0,0.56059764]
[1673773044278,0.89777452,20619.0,20618.0,0.56059764]
[1673773044532,0.76620256,20619.0,20617.0,0.33885387]
[1673773044868,0.51223695,20618.0,20616.0,0.02944348]
[1673773045089,0.216345,20617.0,20616.0,0.02944348]
[1673773045350,1.33741991,20617.0,20616.0,0.02944348]
[1673773045615,1.33741991,20617.0,20608.0,0.49708615]
[1673773045616,0.02943,20616.0,20608.0,0.49708615]
[1673773045880,0.00489714,20609.0,20608.0,8.615e-05]
[1673773046149,0.00489714,20609.0,20608.0,0.54042863]
[1673773046150,0.98943864,20609.0,20608.0,0.54042863]
[1673773046423,0.1,20608.0,20607.0,0.4812407]
[1673773046686,0.316345,20608.0,20607.0,0.4812407]
[1673773046953,0.50707095,20608.0,20606.0,0.60094468]
[1673773047211,0.1305,20610.0,20605.0,0.0005]
[1673773047212,0.99793864,20607.0,20605.0,0.0005]
[1673773047702,0.57248749,20608.0,20606.0,0.60820974]
[1673773047708,0.57248749,20608.0,20605.0,0.0005]
[1673773048012,0.27089,20606.0,20605.0,0.0005]
[1673773048274,0.646745,20606.0,20605.0,0.0005]
[1673773048534,0.00075503,20604.0,20601.0,0.64986074]
[1673773048854,0.00075503,20604.0,20601.0,0.00066214]
[1673773048855,0.1316,20602.0,20601.0,0.00066214]
[1673773049113,0.33932959,20602.0,20601.0,0.53545836]
[1673773049395,0.13185503,20604.0,20602.0,0.62912061]
[1673773049396,0.00075503,20604.0,20602.0,0.62912061]
[1673773049662,0.00075503,20604.0,20601.0,0.00066214]
[1673773049916,0.00075503,20604.0,20602.0,0.96257369]
[1673773050394,0.00075503,20604.0,20603.0,0.1313]
[1673773050659,0.00075503,20604.0,20603.0,0.2398]
[1673773050918,0.00075503,20604.0,20603.0,1.50236769]
[1673773051472,0.02943,20616.0,20603.0,1.50236769]
[1673773051473,0.02943,20616.0,20604.0,0.1]
[1673773051713,0.18643548,20621.0,20613.0,0.1316]
[1673773051714,0.1,20620.0,20613.0,0.1316]
[1673773051977,0.42034027,20615.0,20614.0,0.5774]
[1673773052486,0.15044374,20620.0,20614.0,0.5774]
[1673773052756,0.40957394,20618.0,20614.0,1.03188052]
[1673773053013,0.35540587,20620.0,20614.0,1.062488]
[1673773053262,0.45203019,20619.0,20614.0,1.062488]
[1673773053539,0.27486607,20621.0,20614.0,1.062488]
[1673773053540,0.04326607,20621.0,20614.0,1.062488]
[1673773053796,0.04326607,20621.0,20616.0,0.1316]
[1673773054058,0.37339165,20620.0,20617.0,0.485024]
[1673773054320,0.23399202,20621.0,20615.0,0.485068]
[1673773054321,0.66108084,20616.0,20615.0,0.485068]
[1673773055600,0.66108084,20616.0,20615.0,0.48500707]
[1673773055850,0.66108084,20616.0,20615.0,0.87719131]
[1673773056110,0.66108084,20616.0,20615.0,0.39218424]
[1673773056387,0.91791487,20616.0,20610.0,0.4852]
[1673773056698,0.81223695,20615.0,20610.0,0.4302907]
[1673773056953,0.51223695,20614.0,20610.0,0.4302907]
[1673773057208,0.32232595,20613.0,20610.0,0.4302907]
[1673773057738,0.1316,20611.0,20603.0,0.19003]
[1673773058005,0.1312,20609.0,20606.0,1.04958609]
[1673773058260,0.19072595,20608.0,20602.0,0.19003]
[1673773058530,0.19072595,20607.0,20605.0,0.43254932]
[1673773058786,0.01312,20608.0,20606.0,0.02321644]
[1673773058787,0.14472,20608.0,20606.0,0.02321644]
[1673773059039,0.1305,20611.0,20609.0,0.48534158]
[1673773059337,0.49570436,20612.0,20610.0,0.44839067]
[1673773059571,0.23943804,20613.0,20611.0,0.4510757]
[1673773059843,0.45028147,20614.0,20611.0,0.4510757]
[1673773060661,0.0515,20613.0,20611.0,0.4510757]
[1673773061438,0.536637,20613.0,20609.0,0.5918]
[1673773061706,0.80776295,20613.0,20609.0,1.03959168]
[1673773061977,0.85878892,20616.0,20609.0,1.077019]
[1673773061978,0.66108084,20616.0,20609.0,1.077019]
[1673773062258,1.13180596,20616.0,20612.0,0.1319]
[1673773062518,0.66108084,20616.0,20613.0,0.970252]
[1673773062782,0.66108084,20616.0,20613.0,1.102152]
[1673773063051,0.19072595,20615.0,20611.0,0.616561]
[1673773063578,0.19072595,20614.0,20611.0,0.38495615]
[1673773063831,0.19072595,20614.0,20610.0,3.40252349]
[1673773064079,0.19078595,20614.0,20610.0,3.40252349]
[1673773064839,0.19072595,20613.0,20610.0,3.40252349]
[1673773065349,0.67474675,20614.0,20610.0,3.40252349]
[1673773065600,0.485131,20613.0,20611.0,0.47406331]
[1673773065864,0.8713715,20614.0,20611.0,0.47406331]
[1673773066386,0.3862605,20614.0,20611.0,0.47406331]
[1673773066643,0.42453626,20613.0,20610.0,2.94524032]
[1673773066915,0.19072595,20612.0,20610.0,2.94524032]
[1673773067193,0.1319,20611.0,20610.0,2.94524032]
[1673773067459,1.56051395,20611.0,20610.0,2.94524032]
[1673773067713,1.7672849,20611.0,20610.0,1.793653]
[1673773068501,1.169788,20611.0,20610.0,1.793653]
[1673773068760,1.469788,20611.0,20610.0,1.793653]
[1673773069011,1.169788,20611.0,20610.0,1.793653]
[1673773069262,1.3639815,20611.0,20610.0,1.793653]
[1673773069795,1.3639815,20611.0,20610.0,1.788653]
[1673773069796,0.937948,20611.0,20610.0,1.788653]
[1673773069999,1.23308165,20611.0,20610.0,1.788653]
[1673773070254,1.53308165,20611.0,20610.0,1.788653]
[1673773070512,1.41226832,20611.0,20610.0,1.788653]
[1673773070754,0.937948,20611.0,20610.0,1.788653]
[1673773071044,1.237948,20611.0,20610.0,1.788653]
[1673773071516,1.66311241,20611.0,20610.0,1.7875784]
[1673773072015,1.36311241,20611.0,20610.0,1.7875784]
[1673773072524,1.36237846,20611.0,20610.0,1.7875784]
[1673773073046,0.48450305,20611.0,20610.0,1.7875784]
[1673773073297,0.48450305,20611.0,20610.0,2.14314354]
[1673773073298,6e-05,20611.0,20610.0,2.14314354]
[1673773073569,6e-05,20611.0,20610.0,1.37882135]
[1673773076870,6e-05,20611.0,20610.0,1.50845721]
[1673773077120,6e-05,20611.0,20610.0,1.64035721]
[1673773078402,6e-05,20611.0,20610.0,1.94035721]
[1673773078728,6e-05,20611.0,20610.0,0.917101]
[1673773079147,6e-05,20611.0,20610.0,1.017101]
[1673773079655,6e-05,20611.0,20610.0,0.717101]
[1673773080155,6e-05,20611.0,20610.0,0.617101]
[1673773080914,6e-05,20611.0,20610.0,1.648687]
[1673773081188,6e-05,20611.0,20610.0,2.967487]
[1673773081678,6e-05,20611.0,20610.0,3.267487]
[1673773081931,6e-05,20611.0,20610.0,2.607987]
[1673773082702,0.66108084,20616.0,20611.0,0.1]
[1673773082955,0.66108084,20616.0,20615.0,0.2625]
[1673773083207,8.084e-05,20616.0,20615.0,2.211332]
[1673773083458,0.00270451,20620.0,20615.0,2.98853369]
[1673773083708,0.00270451,20620.0,20619.0,0.2625]
[1673773083956,0.00270451,20620.0,20619.0,1.232478]
[1673773084207,0.00270451,20620.0,20619.0,1.531779]
[1673773084481,4.51e-06,20620.0,20619.0,1.531779]
[1673773084736,0.04326607,20621.0,20620.0,0.1]
[1673773084990,0.04326607,20621.0,20620.0,0.484966]
[1673773085236,0.37537736,20620.0,20619.0,0.484989]
[1673773085494,0.37537736,20620.0,20618.0,0.485004]
[1673773085759,0.49252668,20621.0,20617.0,1.045236]
[1673773086022,0.68325263,20621.0,20618.0,0.37247464]
[1673773086391,0.49252668,20621.0,20618.0,0.37247464]
[1673773086546,0.04326607,20621.0,20618.0,0.50387464]
[1673773086795,0.04326607,20621.0,20618.0,0.616412]
[1673773087052,0.04326607,20621.0,20619.0,0.3]
[1673773087309,0.04326607,20621.0,20620.0,0.1317]
[1673773087816,0.04326607,20621.0,20620.0,0.616666]
[1673773088916,0.04326607,20621.0,20620.0,1.068799]
[1673773089202,0.04326607,20621.0,20620.0,0.916666]
[1673773089463,0.23399202,20621.0,20620.0,0.84577289]
[1673773089708,0.04326607,20621.0,20618.0,0.485012]
[1673773089954,0.71595126,20621.0,20619.0,0.49432369]
[1673773090242,0.52522531,20621.0,20619.0,0.49432369]
[1673773092568,0.43446864,20620.0,20617.0,1.13917962]
[1673773092825,0.62519459,20620.0,20617.0,1.13917962]
[1673773093337,0.83953042,20620.0,20617.0,0.5602]
[1673773093592,0.321511,20619.0,20617.0,0.5602]
[1673773093846,0.321511,20619.0,20607.0,0.14339599]
[1673773093847,2.34781164,20618.0,20607.0,0.14339599]
[1673773094210,2.34781164,20618.0,20606.0,0.02321644]
[1673773094211,0.00999,20610.0,20606.0,0.02321644]
[1673773094386,1.86275395,20609.0,20606.0,0.02321644]
[1673773094638,0.51223695,20608.0,20606.0,0.02311644]
[1673773094883,1.37761295,20607.0,20606.0,0.02311644]
[1673773095395,1.186887,20607.0,20606.0,0.02311644]
[1673773095972,1.458777,20607.0,20606.0,0.02311644]
[1673773096227,1.448787,20607.0,20606.0,0.02311644]
[1673773096477,1.19806769,20607.0,20606.0,0.02311644]
[1673773096784,0.216345,20607.0,20606.0,0.02311644]